bitfinex/quotes_ETHUSD_20220308
["timestamp","ask_amount","ask_price","bid_price","bid_amount"]
[1646759116849,0.02074152,2555.4,2555.0,0.632]
[1646759117449,0.02074152,2555.4,2555.1,0.632]
[1646759118253,0.00432333,2555.3,2555.1,0.632]
[1646759118452,0.00432333,2555.3,2555.2,0.632]
[1646759119296,0.02506482,2555.4,2555.2,0.632]
[1646759119496,0.02506482,2555.4,2554.7,0.632]
[1646759119997,0.02506482,2555.4,2554.7,1.61082]
[1646759120201,0.02074152,2555.4,2554.7,1.61082]
[1646759120399,0.02074152,2555.4,2554.9,0.632]
[1646759120612,0.02074152,2555.4,2554.8,0.97872]
[1646759120613,0.02074152,2555.4,2555.1,1.53742948]
[1646759120614,0.00417751,2555.2,2555.1,1.53742948]
[1646759121404,0.02074152,2555.4,2555.1,1.53742948]
[1646759121803,0.00417745,2555.3,2555.1,1.53742948]
[1646759122104,0.00417745,2555.3,2555.2,0.632]
[1646759122745,0.02074152,2555.4,2555.2,0.632]
[1646759122944,0.02491891,2555.4,2555.3,0.632]
[1646759123350,11.87491891,2555.4,2555.3,0.632]
[1646759123946,11.87074152,2555.4,2555.3,0.632]
[1646759124550,0.02074152,2555.4,2555.3,0.632]
[1646759125555,11.87074152,2555.4,2555.3,0.632]
[1646759125759,13.58563967,2555.4,2555.3,0.632]
[1646759125954,13.58563967,2555.4,2555.3,0.2429]
[1646759126155,13.58563967,2555.4,2554.5,0.00418387]
[1646759126403,11.85,2555.2,2554.2,0.97897]
[1646759126701,11.85,2555.2,2554.5,0.00418387]
[1646759126702,12.86489815,2555.2,2554.5,0.00418387]
[1646759126901,16.86489815,2555.2,2554.5,0.00418387]
[1646759127102,11.85,2555.0,2554.5,0.00418387]
[1646759127302,13.06505577,2554.6,2554.5,0.00418387]
[1646759127501,13.06505577,2554.6,2553.6,0.98670936]
[1646759127700,14.06505577,2554.6,2553.4,0.71489815]
[1646759127900,0.00192309,2554.5,2553.4,0.71489815]
[1646759128101,14.36505577,2554.6,2553.4,0.71489815]
[1646759128306,0.00192309,2554.5,2553.4,0.71489815]
[1646759128504,14.36505577,2554.6,2553.5,0.71489815]
[1646759128701,0.00192309,2554.5,2553.5,0.71489815]
[1646759128901,14.36505577,2554.6,2553.5,0.71489815]
[1646759129101,14.36505577,2554.6,2553.9,0.00401843]
[1646759129901,14.36505577,2554.6,2553.4,1.69421815]
[1646759130356,14.36505577,2554.6,2554.1,0.0040183]
[1646759130554,11.85,2554.4,2554.1,0.0040183]
[1646759130754,13.15,2554.4,2554.1,0.0040183]
[1646759130958,13.618,2554.4,2554.1,0.0040183]
[1646759131158,13.618,2554.4,2553.3,0.71489815]
[1646759131159,13.618,2554.4,2553.2,0.71489815]
[1646759131355,11.85,2553.7,2553.2,0.71489815]
[1646759131553,11.85,2554.2,2553.1,0.71489815]
[1646759131755,1.3,2554.2,2553.2,0.71489815]
[1646759131955,1.3,2554.2,2553.3,0.71489815]
[1646759132152,0.3,2554.2,2553.3,0.71489815]
[1646759132353,1.30192309,2554.3,2553.3,0.71489815]
[1646759132554,1.3,2554.3,2553.6,1.100631]
[1646759132753,0.3,2554.3,2553.3,0.71489815]
[1646759133155,0.00192309,2554.5,2554.3,0.04642173]
[1646759133355,3.8509,2554.6,2554.3,0.04642173]
[1646759133561,11.85,2554.5,2554.3,0.04642173]
[1646759134598,6.99476551,2554.9,2554.3,0.04642173]
[1646759134798,1.46357305,2554.8,2554.4,0.12271411]
[1646759134997,1.4678964,2554.8,2554.4,0.12271411]
[1646759135201,1.46357305,2554.7,2554.4,0.12271411]
[1646759135811,0.00432335,2554.8,2554.5,1.06354036]
[1646759136003,4.005,2555.2,2554.6,0.12271411]
[1646759136208,0.00432351,2554.8,2554.7,0.12271411]
[1646759136603,0.00432351,2554.8,2554.5,0.12271411]
[1646759137003,0.00432351,2554.8,2554.4,0.00432419]
[1646759137201,1.12000201,2555.0,2554.3,0.04642173]
[1646759137402,0.00432361,2554.8,2554.5,0.00432418]
[1646759138462,0.00432361,2554.8,2554.3,0.04642173]
[1646759138662,0.00418093,2554.8,2554.5,0.00418148]
[1646759139463,0.00418093,2554.8,2554.3,0.04642173]
[1646759139662,4.005,2555.2,2554.3,0.04642173]
[1646759139864,4.005,2555.2,2554.5,0.00418148]
[1646759139865,0.00418093,2554.8,2554.5,0.00418148]
[1646759141998,15.855,2555.2,2554.3,1.02540173]
[1646759142199,0.00378365,2554.8,2554.5,0.00378415]
[1646759143203,15.855,2555.2,2554.3,1.02540173]
[1646759143404,0.00378365,2554.8,2554.5,0.00378415]
[1646759144306,17.55132013,2555.2,2554.3,1.02540173]
[1646759144708,0.00244572,2554.8,2554.3,1.02540173]
[1646759144907,0.00244572,2554.8,2554.3,0.04642173]
[1646759145556,4.00692309,2555.2,2554.3,0.04642173]
[1646759145759,11.85,2555.1,2554.3,0.04642173]
[1646759145957,0.00404862,2554.8,2554.4,0.00404926]
[1646759146656,15.85692309,2555.2,2554.4,1.00162947]
[1646759146860,5.70132013,2555.2,2554.4,1.00162947]
[1646759147060,0.00404867,2554.8,2554.5,0.00404923]
[1646759147863,6.9563,2555.3,2554.5,4.03988815]
[1646759147864,1.1835,2555.3,2554.5,4.03988815]
[1646759148062,1.1835,2555.3,2554.6,0.9788]
[1646759148261,0.02266461,2555.4,2554.6,0.9788]
[1646759148459,0.02266461,2555.4,2554.6,4.04033815]
[1646759148460,0.00404872,2554.8,2554.6,4.04033815]
[1646759148659,0.00404872,2554.8,2554.7,1.51893132]
[1646759149106,0.02074152,2555.4,2554.7,1.12983132]
[1646759149303,0.02074152,2555.4,2554.6,1.95754]
[1646759149503,0.00413783,2554.9,2554.6,1.95754]
[1646759150108,0.00413783,2554.9,2554.6,2.93629]
[1646759150308,0.02266461,2555.4,2554.6,2.93629]
[1646759150510,0.02074152,2555.4,2554.8,1.04714694]
[1646759150716,0.00413783,2554.9,2554.8,2.02573694]
[1646759151617,0.02074152,2555.4,2554.8,2.02573694]
[1646759153050,0.00401335,2555.2,2554.8,2.02573694]
[1646759153649,0.00401335,2555.2,2554.8,0.97859]
[1646759154048,0.02074152,2555.4,2554.6,1.95754]
[1646759154252,0.0040134,2555.1,2554.6,1.95754]
[1646759155054,0.0040134,2555.1,2555.0,1.08188693]
[1646759155255,0.02074152,2555.4,2554.8,0.97867]
[1646759155454,0.00401348,2555.0,2554.9,0.97868]
[1646759155654,0.00321348,2555.0,2554.9,0.97868]
[1646759155856,0.00321348,2555.0,2554.6,1.95754]
[1646759156296,0.02074152,2555.4,2554.6,1.95754]
[1646759156498,0.02074152,2555.4,2554.7,1.01872689]
[1646759157099,1.46766445,2555.3,2554.8,0.12065104]
[1646759157299,13.31766445,2555.3,2554.8,0.12065104]
[1646759157498,1.46766445,2555.2,2554.9,0.12065104]
[1646759157702,1.46766445,2555.2,2555.0,0.12065104]
[1646759157902,1.47035224,2555.2,2555.1,0.12065104]
[1646759158103,1.47035224,2555.2,2554.7,0.12065104]
[1646759158104,11.85268779,2555.2,2554.7,0.12065104]
[1646759158404,2.3359387,2555.1,2554.8,0.12065104]
[1646759158604,1.46766445,2555.0,2554.9,0.12065104]
[1646759158804,1.46958754,2555.3,2554.4,0.12065104]
[1646759159003,0.00268779,2555.1,2554.4,0.12065104]
[1646759159704,1.47035224,2555.1,2554.6,0.97886]
[1646759159904,0.00268779,2555.1,2554.7,1.24161439]
[1646759160155,1.46785099,2555.3,2554.8,0.12065104]
[1646759160358,0.00431569,2554.9,2554.8,0.12065104]
[1646759160764,0.00431569,2554.9,2554.8,2.07803104]
[1646759160958,0.00431569,2554.9,2554.8,2.66269855]
[1646759161257,0.02074152,2555.4,2555.0,0.3891]
[1646759161458,0.02074152,2555.4,2555.2,0.3891]
[1646759161656,0.02074152,2555.4,2555.3,0.12065104]
[1646759162661,0.02074152,2555.4,2554.8,0.83505358]
[1646759162858,0.02074152,2555.4,2555.0,0.9787]
[1646759163057,0.02074152,2555.4,2555.1,0.50975104]
[1646759163258,0.02074152,2555.4,2555.3,0.94701085]
[1646759163457,0.02074152,2555.4,2555.3,1.06766189]
[1646759163898,0.02074152,2555.4,2555.3,1.01766189]
[1646759164502,0.02074152,2555.4,2555.3,0.89701085]
[1646759164706,0.02074152,2555.4,2555.3,0.11646863]
[1646759165103,0.02074152,2555.4,2555.2,2.07353863]
[1646759165305,0.02074152,2555.4,2555.3,0.11646863]
[1646759165506,0.00489836,2555.4,2555.3,1.07537863]
[1646759165704,0.06091462,2555.9,2555.3,1.07537863]
[1646759165903,0.06091462,2555.9,2555.3,0.97853]
[1646759166307,0.07175629,2555.9,2555.6,0.95624199]
[1646759166506,0.07175629,2555.9,2555.3,0.97649]
[1646759167009,0.07175629,2555.9,2555.2,1.95707]
[1646759167213,0.05451547,2555.9,2555.2,1.95707]
[1646759167653,11.90451547,2555.9,2555.2,1.95707]
[1646759168256,0.05451547,2555.9,2555.4,0.3891]
[1646759168462,0.05451547,2555.9,2555.6,5.0]
[1646759168463,0.0272122,2555.9,2555.6,5.0]
[1646759168657,0.0272122,2555.9,2555.6,0.3891]
[1646759168956,0.0272122,2555.9,2555.8,5.3891]
[1646759168957,0.01523752,2555.9,2555.8,5.3891]
[1646759169158,0.01523752,2556.1,2556.0,0.88825254]
[1646759169356,0.01523752,2556.1,2556.0,1.27735254]
[1646759169561,0.04860072,2556.5,2556.1,5.0]
[1646759169759,0.04860072,2556.5,2556.1,6.3669822]
[1646759170360,0.04860072,2556.5,2556.2,4.88949]
[1646759170558,0.04860072,2556.5,2556.2,2.93376]
[1646759171159,0.04860072,2556.5,2556.3,4.47805]
[1646759171160,0.05283014,2556.5,2556.3,4.47805]
[1646759171400,0.05283014,2556.5,2556.3,0.97805]
[1646759171799,0.05283014,2556.5,2556.4,1.0]
[1646759171999,0.04860072,2556.5,2556.4,1.0]
[1646759172200,0.04860072,2556.5,2556.4,2.02725751]
[1646759172405,0.03860776,2556.6,2556.5,5.3891]
[1646759172602,0.06288424,2556.8,2556.7,5.0]
[1646759172603,0.04004588,2556.8,2556.7,5.0]
[1646759173204,3.1114898,2557.0,2556.9,5.0]
[1646759173409,0.00610116,2557.4,2557.3,0.3891]
[1646759173803,0.04205852,2557.7,2557.5,0.3891]
[1646759174004,0.05426084,2557.7,2557.6,0.97738]
[1646759174405,6.14e-05,2558.2,2558.0,5.0]
[1646759174604,0.0081842,2558.2,2558.1,3.5]
[1646759174803,0.06955068,2558.4,2558.2,5.3891]
[1646759175071,0.09609898,2558.3,2558.2,5.3821]
[1646759175255,0.06955068,2558.4,2558.3,0.096]
[1646759175456,0.09630244,2558.8,2558.6,0.3891]
[1646759175655,0.07342516,2559.3,2558.5,5.0]
[1646759175656,0.07342516,2559.3,2558.8,3.68712931]
[1646759175857,7.4294716,2559.5,2559.0,5.0]
[1646759176056,0.01579956,2559.4,2558.9,0.8571]
[1646759176257,0.01579956,2559.4,2559.0,0.8571]
[1646759176458,0.01579956,2559.4,2559.0,0.468]
[1646759176658,0.01579956,2559.4,2558.6,11.83]
[1646759177157,0.01579956,2559.4,2558.1,3.5]
[1646759177158,0.00269143,2559.3,2558.4,1.0]
[1646759177358,0.00269143,2559.3,2558.5,0.9773]
[1646759178058,0.01579956,2559.4,2558.5,1.9543]
[1646759178259,0.00269143,2559.0,2558.8,1.0]
[1646759178457,0.02656366,2559.4,2558.9,5.0]
[1646759178658,0.009857,2559.2,2559.1,0.93575104]
[1646759179105,0.04603526,2559.5,2559.2,5.0]
[1646759179308,0.06574926,2559.5,2559.2,5.0]
[1646759179504,0.06574926,2559.5,2559.2,5.3891]
[1646759180118,0.06574926,2559.5,2559.4,1.0721274]
[1646759180315,0.0184765,2559.6,2559.4,1.0721274]
[1646759180713,0.00432254,2559.5,2559.4,1.0721274]
[1646759181311,0.0184765,2559.6,2559.5,3.5]
[1646759181714,0.0184765,2559.6,2559.4,4.0018874]
[1646759181911,0.02279906,2559.6,2559.4,4.0018874]
[1646759182113,0.02279906,2559.6,2559.4,3.0253274]
[1646759182753,0.0184765,2559.6,2559.5,0.97659]
[1646759183050,0.0184765,2559.6,2559.4,1.9532]
[1646759183250,0.0184765,2559.6,2559.1,1.0]
[1646759183851,0.0184765,2559.6,2559.2,0.3891]
[1646759184053,0.0184765,2559.6,2559.1,1.97703]
[1646759185461,0.0184765,2559.6,2558.8,0.98148012]
[1646759185658,0.02279528,2559.6,2558.8,0.98148012]
[1646759186301,1.136907,2559.6,2558.8,0.98148012]
[1646759186600,1.136907,2559.6,2558.8,0.97716]
[1646759186601,0.0184765,2559.6,2558.8,0.97716]
[1646759187805,0.0184765,2559.6,2558.8,0.97883102]
[1646759188604,0.0184765,2559.6,2558.8,0.00167102]
[1646759188801,0.0184765,2559.6,2558.7,17.44326034]
[1646759188802,0.0184765,2559.6,2558.7,1.0]
[1646759189002,1.04334352,2559.5,2558.8,0.00167102]
[1646759189201,0.0184765,2559.6,2558.8,0.00167102]
[1646759190069,0.0184765,2559.6,2558.8,18.21438297]
[1646759190259,3.6134127,2560.3,2558.8,18.21438297]
[1646759190260,3.5,2560.1,2559.6,1.95352]
[1646759190463,0.0172524,2560.2,2559.6,1.95352]
[1646759190661,0.04035806,2559.8,2559.6,1.95352]
[1646759191658,0.04300576,2559.8,2559.6,2.94656702]
[1646759192259,0.04300576,2559.8,2559.4,1.95365]
[1646759192461,0.04300576,2559.8,2558.9,1.13819997]
[1646759192462,0.04035806,2559.8,2558.9,1.13819997]
[1646759192658,0.0464093,2559.8,2558.9,1.13819997]
[1646759193360,0.0464093,2559.8,2558.9,2.27290733]
[1646759193660,0.04223682,2559.8,2558.9,2.27290733]
[1646759193900,0.00417245,2559.6,2558.9,4.22697733]
[1646759194705,0.00187876,2559.7,2558.9,4.22697733]
[1646759195004,0.00187876,2559.7,2558.9,3.09226997]
[1646759195206,0.00417235,2559.6,2558.9,3.09226997]
[1646759195608,0.00417235,2559.6,2558.9,2.95407]
[1646759195804,0.00417235,2559.6,2558.8,16.85230661]
[1646759196004,0.00187876,2559.7,2558.8,16.84813297]
[1646759196405,0.00431426,2559.6,2558.8,17.85244857]
[1646759197104,0.00431426,2559.6,2558.9,0.97726]
[1646759197304,0.00187876,2559.7,2559.0,0.97703]
[1646759197559,0.0043142,2559.6,2559.1,1.95399]
[1646759198151,0.0043142,2559.6,2559.2,0.977]
[1646759198349,0.0043142,2559.6,2559.1,1.95399]
[1646759198749,0.00187876,2559.7,2559.1,1.95399]
[1646759198950,0.00431436,2559.6,2559.1,1.95399]
[1646759199754,0.00187876,2559.7,2559.1,1.95399]
[1646759199952,0.00400536,2559.6,2559.1,1.95399]
[1646759200958,0.00187876,2559.7,2559.1,1.95399]
[1646759201157,0.00400536,2559.6,2559.3,1.16261054]
[1646759201404,0.00400536,2559.6,2559.4,0.97705]
[1646759202003,0.00187876,2559.7,2559.1,1.95399]
[1646759202203,0.00264719,2559.6,2559.1,1.95399]
[1646759202609,11.85,2559.5,2558.0,4.20843]
[1646759202806,11.85,2559.3,2558.0,3.90843]
[1646759203004,11.85,2559.1,2558.6,1.22921635]
[1646759203203,3.5,2559.2,2558.6,1.22921635]
[1646759203204,0.3,2559.2,2558.6,1.22921635]
[1646759203409,3.50191046,2559.4,2558.6,1.22921635]
[1646759203604,0.3,2559.5,2558.7,0.97729]
[1646759204005,0.00432061,2559.6,2558.7,0.97729]
[1646759204205,0.00432061,2559.6,2559.3,1.03890716]
[1646759204606,0.00187876,2559.7,2559.3,1.03890716]
[1646759204806,0.00432113,2559.6,2559.3,1.03890716]
[1646759205655,0.00187876,2559.7,2559.3,1.03890716]
[1646759205854,0.00432144,2559.6,2559.3,1.03890716]
[1646759206060,0.00432144,2559.6,2559.2,1.95403]
[1646759206261,11.85,2559.5,2558.8,0.00432278]
[1646759206456,15.35,2559.4,2558.8,0.00432278]
[1646759206655,0.3,2559.5,2558.8,1.10442278]
[1646759206855,0.3,2559.4,2559.1,1.1001]
[1646759207254,1.30432108,2559.6,2559.1,1.1001]
[1646759207655,0.60432108,2559.6,2559.1,1.1001]
[1646759208058,3.50187876,2559.7,2559.1,1.1001]
[1646759208257,0.00187876,2559.7,2559.1,1.1001]
[1646759208456,0.00187876,2559.7,2559.2,2.07719]
[1646759208661,0.00187876,2559.7,2559.4,1.1001]
[1646759209503,0.00620094,2559.7,2559.5,1.1001]
[1646759210106,11.85,2559.6,2559.5,1.1001]
[1646759210307,15.65,2559.6,2559.5,1.1001]
[1646759210508,12.15,2559.6,2559.5,1.1001]
[1646759210706,0.30187876,2559.7,2559.5,1.1001]
[1646759210707,0.00596677,2559.7,2559.5,1.1001]
[1646759211509,0.00596677,2559.7,2559.6,1.1001]
[1646759211808,0.00187876,2559.7,2559.6,1.1001]
[1646759212206,0.00588828,2559.7,2559.6,1.1001]
[1646759212407,0.00588828,2559.7,2559.5,1.1001]
[1646759212859,0.00187876,2559.7,2559.5,1.1001]
[1646759213355,0.00588828,2559.7,2559.5,1.1001]
[1646759214157,0.00187876,2559.7,2559.6,1.1001]
[1646759214355,0.00588828,2559.7,2559.6,1.1001]
[1646759215361,0.00187876,2559.7,2559.6,1.1001]
[1646759216164,0.00107876,2559.7,2559.6,1.1001]
[1646759218008,0.00107876,2559.7,2559.6,1.32401344]
[1646759218910,1.36195229,2559.7,2559.6,1.32401344]
[1646759221464,0.00107876,2559.7,2559.6,1.32401344]
[1646759222167,0.00267876,2559.7,2559.6,1.32401344]
[1646759222566,1.36355229,2559.7,2559.6,1.32401344]
[1646759222767,0.00267876,2559.7,2559.6,1.32401344]
[1646759223165,1.36355229,2559.7,2559.6,1.32401344]
[1646759223364,13.21355229,2559.7,2559.6,1.32401344]
[1646759223564,13.51355229,2559.7,2559.6,1.1001]
[1646759223808,13.51355229,2559.7,2559.6,1.32456018]
[1646759224408,13.51355229,2559.7,2559.6,0.22446018]
[1646759224810,13.51355229,2559.7,2559.2,0.22446018]
[1646759225008,1.36087353,2559.6,2559.3,0.22446018]
[1646759225213,13.21087353,2559.6,2559.4,0.22446018]
[1646759225416,1.36087353,2559.5,2559.1,2.07722]
[1646759225615,1.36087353,2559.4,2559.2,0.22452299]
[1646759225816,1.36087353,2559.3,2559.2,0.22452299]
[1646759226218,1.36087353,2559.6,2559.2,0.22452299]
[1646759226415,1.36087353,2559.5,2559.2,0.22452299]
[1646759226617,1.36087353,2559.4,2559.2,0.22452299]
[1646759226818,1.36087353,2559.3,2559.2,0.22452299]
[1646759227015,1.36087353,2559.5,2559.2,1.32462299]
[1646759227217,1.36087353,2559.5,2559.3,0.22452299]
[1646759227666,13.21087353,2559.5,2559.3,0.22452299]
[1646759227878,13.21087353,2559.4,2559.3,1.32462299]
[1646759228267,13.51087353,2559.4,2559.3,1.32462299]
[1646759229774,1.66087353,2559.4,2559.3,1.32462299]
[1646759229972,1.36087353,2559.4,2559.3,1.32462299]
[1646759230377,1.36460283,2559.6,2559.3,1.32462299]
[1646759230579,1.36460283,2559.6,2559.4,0.22452299]
[1646759230780,1.36460283,2559.6,2559.5,2.19854554]
[1646759230980,1.36087353,2559.6,2559.5,1.32462299]
[1646759231178,1.36460292,2559.6,2559.5,1.32462299]
[1646759231911,0.00372939,2559.6,2559.5,1.32462299]
[1646759232113,1.36087353,2559.6,2559.5,1.32462299]
[1646759234314,0.00640437,2559.7,2559.6,1.1001]
[1646759234516,0.00640437,2559.7,2559.6,1.32462299]
[1646759234517,1.36639703,2559.7,2559.6,1.32462299]
[1646759234813,1.37012264,2559.7,2559.6,1.32462299]
[1646759235861,1.36639703,2559.7,2559.6,1.32462299]
[1646759236761,1.36637295,2559.7,2559.6,2.1934164]
[1646759236961,1.36636326,2559.7,2559.6,2.1934164]
[1646759237168,0.00191046,2560.3,2560.0,1.09474248]
[1646759237364,5.50887232,2560.5,2560.3,2.5]
[1646759237365,0.15807776,2560.4,2560.3,2.5]
[1646759237561,0.03777232,2560.5,2560.3,3.59474248]
[1646759238262,0.03777232,2560.5,2559.9,1.10350254]
[1646759238263,0.03777232,2560.5,2560.4,2.00147761]
[1646759238464,0.01174,2560.9,2560.8,1.09474248]
[1646759238664,0.1329364,2561.2,2560.8,1.09474248]
[1646759238915,0.0571557,2561.6,2561.2,1.09474248]
[1646759239313,0.0571557,2561.6,2561.5,2.06715161]
[1646759239516,0.05680692,2561.8,2561.5,2.06715161]
[1646759239517,0.71316427,2562.4,2561.8,5.0]
[1646759239722,3.494127,2563.1,2562.3,0.01263387]
[1646759239723,0.71123875,2563.0,2562.3,0.01263387]
[1646759239916,0.01447336,2562.9,2562.4,0.60619997]
[1646759240117,0.05627392,2563.4,2562.5,4.98384248]
[1646759240426,5.46e-05,2563.8,2563.2,1.48384248]
[1646759240627,1.932e-05,2563.6,2563.5,0.01221805]
[1646759240920,1.932e-05,2563.6,2563.5,6.46406053]
[1646759241118,3.864e-05,2564.0,2563.7,1.48384248]
[1646759241318,3.864e-05,2564.0,2563.9,1.09474248]
[1646759241520,0.5184765,2564.7,2564.3,1.09474248]
[1646759241521,0.08693656,2564.6,2564.3,1.09474248]
[1646759241726,0.0561067,2564.9,2564.6,1.09474248]
[1646759241919,0.0561067,2564.9,2564.8,1.09474248]
[1646759241920,0.01766108,2564.9,2564.8,1.09474248]
[1646759242118,6.108e-05,2564.9,2564.8,6.06274248]
[1646759242330,6.108e-05,2564.9,2564.8,7.57535103]
[1646759242579,0.06058106,2565.4,2565.2,1.09474248]
[1646759242767,0.01968788,2565.4,2565.3,2.67448869]
[1646759242968,0.01305546,2565.6,2565.5,1.09474248]
[1646759242969,0.0081392,2565.6,2565.5,1.09474248]
[1646759243166,0.0081392,2565.6,2565.5,1.56274248]
[1646759243367,0.0081392,2565.6,2565.5,1.09474248]
[1646759243568,0.0081392,2565.6,2564.8,1.51260855]
[1646759243967,3.0081392,2565.6,2564.8,1.5]
[1646759244167,0.9752,2565.5,2564.7,1.11656453]
[1646759244369,0.0081392,2565.6,2564.7,1.11656453]
[1646759244568,0.0081392,2565.6,2564.8,3.75]
[1646759244767,0.0081392,2565.6,2564.8,0.25]
[1646759245171,0.0081392,2565.6,2565.4,0.90690996]
[1646759245773,0.0081392,2565.6,2564.8,0.25]
[1646759245774,0.00432668,2565.3,2564.8,0.25]
[1646759246173,0.01246588,2565.3,2564.8,0.25]
[1646759246407,0.5,2564.9,2564.8,0.25]
[1646759246614,0.5,2564.9,2564.5,0.25]
[1646759247109,0.5,2564.9,2564.6,1.11370143]
[1646759247311,0.00432678,2565.2,2564.6,1.58170143]
[1646759247512,0.00432678,2565.2,2564.7,3.5]
[1646759247712,0.00432678,2565.2,2565.1,1.0]
[1646759247910,0.0081392,2565.3,2565.1,1.468]
[1646759248111,0.0081392,2565.3,2565.1,3.4171]
[1646759248318,0.0081392,2565.3,2565.2,1.20012411]
[1646759248510,3.92e-05,2565.3,2565.2,1.20012411]
[1646759248811,0.08423788,2565.7,2565.3,5.0]
[1646759249010,0.10051628,2565.7,2565.4,0.468]
[1646759249211,0.10051628,2565.7,2565.6,1.0]
[1646759249612,0.10051628,2565.7,2565.6,1.9325912]
[1646759249911,0.10051628,2565.7,2565.6,1.0]
[1646759250369,0.10051628,2565.7,2565.6,1.468]
[1646759250768,0.21685889,2566.2,2565.8,0.00401183]
[1646759250968,0.22217129,2566.2,2565.9,0.468]
[1646759251166,0.22217129,2566.2,2565.9,1.38508567]
[1646759251369,0.11923168,2566.4,2566.1,0.01235454]
[1646759251370,0.0106248,2566.4,2566.1,0.01235454]
[1646759251569,0.15894,2567.2,2566.2,5.468]
[1646759251570,0.08973637,2567.0,2566.2,5.468]
[1646759251769,0.08787658,2567.0,2566.5,0.01271953]
[1646759251970,0.08787658,2567.0,2566.6,5.0188]
[1646759252171,0.03792252,2567.0,2566.8,5.0]
[1646759252369,0.00185979,2567.9,2567.0,5.0]
[1646759252570,0.15306632,2567.6,2567.1,0.468]
[1646759252774,0.15306632,2567.6,2567.3,13.33]
[1646759252968,0.15306632,2567.6,2567.3,13.798]
[1646759253267,6.632e-05,2567.6,2567.3,13.798]
[1646759253468,6.632e-05,2567.6,2567.5,1.0]
[1646759253469,0.01561096,2567.6,2567.5,1.0]
[1646759253669,0.01561096,2567.6,2567.4,1.1465558]
[1646759253909,0.01561096,2567.6,2567.3,13.33]
[1646759254109,0.01561096,2567.6,2567.3,1.5]
[1646759254713,0.01561096,2567.6,2565.9,1.0]
[1646759254714,5.0,2567.5,2565.9,1.0]
[1646759254912,5.0,2567.5,2565.7,0.19614379]
[1646759254913,0.00185979,2567.4,2565.7,0.19614379]
[1646759255113,0.00185979,2567.4,2565.8,3.5]
[1646759255420,0.00185979,2567.4,2566.5,1.0]
[1646759255614,0.02507742,2567.6,2565.9,0.468]
[1646759255818,0.02507742,2567.6,2566.2,1.0]
[1646759255819,0.00185979,2567.5,2566.2,1.0]
[1646759256013,0.02507742,2567.6,2566.7,0.97111175]
[1646759256014,0.99921742,2567.6,2566.7,0.97111175]
[1646759256214,0.32507742,2567.6,2566.7,0.97111175]
[1646759256614,0.32252472,2567.6,2566.3,0.0017738]
[1646759256815,0.00185979,2567.5,2566.3,0.0017738]
[1646759257216,1.27427,2567.2,2566.3,0.0017738]
[1646759257415,1.27427,2567.2,2565.9,1.0]
[1646759257416,1.28988096,2567.2,2565.9,1.0]
[1646759257668,1.28988096,2567.2,2566.3,0.0017738]
[1646759257669,3.0,2567.0,2566.3,0.0017738]
[1646759257861,3.0,2567.0,2565.4,11.83]
[1646759257862,0.17323697,2566.0,2565.4,11.83]
[1646759258260,0.17323697,2566.0,2564.7,3.51269435]
[1646759258461,0.17323697,2566.0,2564.6,0.5]
[1646759258462,0.00185979,2565.9,2565.1,0.1592]
[1646759258660,0.00185979,2565.9,2565.5,1.0]
[1646759258862,0.17323697,2566.0,2565.5,1.0]
[1646759259061,0.17323697,2566.0,2565.5,3.5]
[1646759259260,0.17323697,2566.0,2565.6,0.1608]
[1646759259460,0.17323697,2566.0,2565.6,0.1624]
[1646759259666,0.17323697,2566.0,2565.5,4.772]
[1646759259863,0.00185979,2566.9,2565.9,1.1]
[1646759260060,2.93956096,2567.1,2566.1,1.1]
[1646759260061,0.01561096,2567.1,2566.1,1.1]
[1646759260266,0.00425872,2566.5,2566.0,1.272]
[1646759260466,0.00425872,2566.5,2566.4,2.1]
[1646759260964,0.00425872,2566.5,2566.4,3.27885438]
[1646759261165,1.94886,2566.7,2566.4,2.27885438]
[1646759261413,0.00425926,2566.6,2566.2,0.00425992]
[1646759262411,0.00185979,2567.0,2565.9,1.1]
[1646759262614,0.9744,2566.6,2566.4,1.1]
[1646759262815,0.9744,2566.6,2566.2,0.00173793]
[1646759262816,11.85,2566.3,2566.2,0.00173793]
[1646759263014,12.15,2566.5,2566.2,0.00173793]
[1646759263520,0.3,2566.5,2564.9,3.5]
[1646759263714,0.97484,2566.0,2564.8,1.94946]
[1646759264116,1.27484,2566.0,2564.5,0.19310931]
[1646759264316,0.00185979,2565.9,2564.8,1.0]
[1646759264515,0.6,2566.0,2564.8,1.0]
[1646759264516,0.3,2566.0,2564.8,1.0]
[1646759264715,0.3,2566.0,2565.0,1.20613697]
[1646759264716,0.00185979,2566.0,2565.0,1.20613697]
[1646759264916,0.97497,2565.6,2565.0,1.20613697]
[1646759265168,1.27497,2565.6,2565.0,1.20613697]
[1646759265369,0.97497,2565.6,2565.0,1.20613697]
[1646759265567,0.00185979,2566.0,2565.0,1.20613697]
[1646759265767,0.00185979,2566.2,2565.0,1.20613697]
[1646759266072,11.85,2566.2,2565.0,1.20613697]
[1646759266267,13.80009,2565.7,2564.6,1.94971]
[1646759266469,12.8250383,2565.6,2564.4,10.0]
[1646759266767,0.3,2565.5,2564.4,10.0]
[1646759267067,0.00185979,2565.5,2564.4,10.0]
[1646759267271,0.00185979,2565.7,2564.9,1.22243945]
[1646759267568,11.85,2565.9,2565.1,1.3639]
[1646759267569,0.00185979,2565.9,2565.1,1.3639]
[1646759267768,0.00185979,2566.1,2565.1,1.4428]
[1646759267966,0.00185979,2566.2,2565.1,1.4428]
[1646759268168,0.00185979,2566.7,2565.4,1.0]
[1646759268368,0.00185979,2566.7,2566.1,1.15855868]
[1646759268369,0.97446,2566.7,2566.1,1.15855868]
[1646759269607,0.92446,2566.7,2566.1,1.15855868]
[1646759269806,0.00428297,2566.5,2566.1,0.00428371]
[1646759270008,13.80373297,2566.5,2566.1,0.00428371]
[1646759270212,11.85,2566.2,2566.1,0.00428371]
[1646759270610,15.15,2566.2,2566.1,0.00428371]
[1646759270811,11.85,2565.5,2564.7,0.99706216]
[1646759271013,0.97512,2565.4,2564.7,0.99706216]
[1646759271211,1.3,2565.5,2564.3,0.12709493]
[1646759271416,1.3,2565.5,2563.9,11.83]
[1646759271417,0.46452264,2565.3,2563.9,11.83]
[1646759271611,0.46452264,2565.3,2562.7,3.06476867]
[1646759271612,3.0,2564.7,2562.7,3.06476867]
[1646759271812,7.2023147,2564.7,2564.0,10.0]